[Event "11th LCC Rapid 2019"]
[Site "London"]
[Date "2019.12.07"]
[Round "2.22"]
[White "Rushbrooke, Tibo"]
[Black "Tombolis, Christopher"]
[Result "1-0"]
[WhiteElo "1730"]
[BlackElo "1875"]
[PlyCount "91"]
[EventDate "2019.12.08"]
[EventType "swiss"]
[EventCountry "ENG"]
[TimeControl "15+10"]
[WhiteClock "0:09:09"]
[BlackClock "0:00:48"]

1. e4 {[%emt 0:00:00]} c5 {[%emt 0:00:00]} 2. f4 {[%emt 0:00:00]} g6 {[%emt 0:00:00]} 3. d4 {[%emt 0:00:00]} cxd4 {[%emt 0:00:00]} 4. Qxd4 {[%emt 0:00:00]} Nf6 {[%emt 0:00:00]} 5. e5 {[%emt 0:00:00]} Nc6 {[%emt 0:00:00]} 6. Qd3 {[%emt 0:00:54]} Ng4 {[%emt 0:00:00]} 7. Be2 {[%emt 0:00:00]} Nh6 {[%emt 0:00:00]} 8. Nf3 {[%emt 0:00:00]} e6 {[%emt 0:00:00]} 9. Nc3 {[%emt 0:00:00]} d5 {[%emt 0:00:00]} 10. O-O {[%emt 0:00:00]} Nf5 {[%emt 0:00:00]} 11. g4 {[%emt 0:00:00]} Bc5+ {[%emt 0:00:00]} 12. Kh1 {[%emt 0:00:00]} Nh4 {[%emt 0:00:00]} 13. Be3 {[%emt 0:00:00]} Bxe3 {[%emt 0:00:00]} 14. Qxe3 {[%emt 0:00:00]} d4 {[%emt 0:00:00]} 15. Nxd4 {[%emt 0:00:00]} Qxd4 {[%emt 0:00:00]} 16. Qg3 {[%emt 0:00:00]} Qd8 {[%emt 0:00:00]} 17. Rad1 {[%emt 0:00:00]} Qe7 {[%emt 0:00:00]} 18. Ne4 {[%emt 0:00:00]} Kf8 {[%emt 0:00:00]} 19. Nf6 {[%emt 0:01:22]} g5 {[%emt 0:00:00]} 20. fxg5 {[%emt 0:00:02]} Ng6 {[%emt 0:00:00]} 21. Qh3 {[%emt 0:00:01]} h6 {[%emt 0:00:00]} 22. gxh6 {[%emt 0:00:02]} Ncxe5 {[%emt 0:00:00]} 23. h7 {[%emt 0:00:40]} Qc7 {[%emt 0:00:00]} 24. Qh6+ {[%emt 0:00:48]} Ke7 {[%emt 0:00:00]} 25. Ng8+ {[%emt 0:00:18]} Ke8 {[%emt 0:00:00]} 26. Nf6+ {[%emt 0:00:03]} Ke7 {[%emt 0:00:00]} 27. Ng8+ {[%emt 0:00:02]} Ke8 {[%emt 0:00:00]} 28. Qg5 {[%emt 0:00:26]} Bd7 {[%emt 0:00:00]} 29. Nf6+ {[%emt 0:00:02]} Ke7 {[%emt 0:00:00]} 30. Nd5+ {[%emt 0:00:05]} Kd6 {[%emt 0:00:00]} 31. Nxc7+ {[%emt 0:00:05]} Kxc7 {[%emt 0:00:00]} 32. Rxf7 {[%emt 0:00:34]} Nxf7 {[%emt 0:00:00]} 33. Qxg6 {[%emt 0:00:01]} Ne5 {[%emt 0:00:00]} 34. Qg7 {[%emt 0:00:02]} Nc6 {[%emt 0:00:00]} 35. Rxd7+ {[%emt 0:00:03]} Kb6 {[%emt 0:00:00]} 36. Rxb7+ {[%emt 0:00:02]} Kc5 {[%emt 0:00:00]} 37. Qc3+ {[%emt 0:00:11]} Kd6 {[%emt 0:00:00]} 38. Bf3 {[%emt 0:00:18]} Rac8 {[%emt 0:00:00]} 39. Bxc6 {[%emt 0:00:18]} Rxc6 {[%emt 0:00:00]} 40. Qxh8 {[%emt 0:00:04]} Rxc2 {[%emt 0:00:00]} 41. Qd8+ {[%emt 0:00:07]} Kc5 {[%emt 0:00:00]} 42. Qc7+ {[%emt 0:00:05]} Kd4 {[%emt 0:00:00]} 43. Qxc2 {[%emt 0:00:01]} e5 {[%emt 0:00:08]} 44. h8=Q {[%emt 0:00:12]} Ke3 {[%emt 0:00:00]} 45. Qxe5+ {[%emt 0:00:02]} Kf3 {[%emt 0:00:00]} 46. Qce2# {[%emt 0:00:17]} 1-0

[Event "11th LCC Rapid 2019"]
[Site "London"]
[Date "2019.12.07"]
[Round "2.23"]
[White "Deaconu, Mihai-Ionut"]
[Black "Thatte, Nishchal"]
[Result "0-1"]
[WhiteElo "1957"]
[BlackElo "1723"]
[PlyCount "132"]
[EventDate "2019.12.08"]
[EventType "swiss"]
[EventCountry "ENG"]
[TimeControl "15+10"]
[WhiteClock "0:01:34"]
[BlackClock "0:00:29"]

1. d4 {[%emt 0:00:00]} Nf6 {[%emt 0:00:00]} 2. c4 {[%emt 0:00:00]} e6 {[%emt 0:00:00]} 3. Nc3 {[%emt 0:00:00]} Bb4 {[%emt 0:00:00]} 4. Qc2 {[%emt 0:00:00]} O-O {[%emt 0:00:00]} 5. a3 {[%emt 0:00:00]} Bxc3+ {[%emt 0:00:00]} 6. Qxc3 {[%emt 0:00:00]} b6 {[%emt 0:00:00]} 7. Bg5 {[%emt 0:00:00]} Bb7 {[%emt 0:00:00]} 8. f3 {[%emt 0:00:00]} d5 {[%emt 0:00:00]} 9. e3 {[%emt 0:00:00]} Nbd7 {[%emt 0:00:00]} 10. Bd3 {[%emt 0:00:00]} c5 {[%emt 0:00:00]} 11. Ne2 {[%emt 0:00:00]} Rc8 {[%emt 0:00:00]} 12. b3 {[%emt 0:00:00]} cxd4 {[%emt 0:00:00]} 13. exd4 {[%emt 0:00:00]} Qc7 {[%emt 0:00:00]} 14. Bf4 {[%emt 0:00:00]} Qd8 {[%emt 0:00:00]} 15. Bd6 {[%emt 0:00:00]} Re8 {[%emt 0:00:00]} 16. c5 {[%emt 0:00:00]} bxc5 {[%emt 0:00:00]} 17. dxc5 {[%emt 0:00:00]} e5 {[%emt 0:01:06]} 18. Qb4 {[%emt 0:00:00]} Bc6 {[%emt 0:00:00]} 19. Ba6 {[%emt 0:00:00]} Ra8 {[%emt 0:00:00]} 20. O-O {[%emt 0:00:00]} d4 {[%emt 0:00:00]} 21. Ng3 {[%emt 0:00:00]} Nd5 {[%emt 0:00:00]} 22. Qd2 {[%emt 0:00:00]} Nf8 {[%emt 0:00:00]} 23. b4 {[%emt 0:00:00]} Qd7 {[%emt 0:00:00]} 24. Qd3 {[%emt 0:00:00]} Nf4 {[%emt 0:00:00]} 25. Qb1 {[%emt 0:00:00]} N8e6 {[%emt 0:00:00]} 26. a4 {[%emt 0:00:00]} Nd5 {[%emt 0:00:00]} 27. b5 {[%emt 0:00:00]} Nc3 {[%emt 0:00:00]} 28. Qc2 {[%emt 0:00:00]} Bd5 {[%emt 0:00:08]} 29. Ne4 {[%emt 0:00:00]} Bxe4 {[%emt 0:00:49]} 30. fxe4 {[%emt 0:00:00]} Nf4 {[%emt 0:00:08]} 31. Rae1 {[%emt 0:00:00]} Nce2+ {[%emt 0:00:52]} 32. Kh1 {[%emt 0:00:08]} Qg4 {[%emt 0:01:57]} 33. Rxf4 {[%emt 0:00:43]} Nxf4 {[%emt 0:00:10]} 34. c6 {[%emt 0:02:23]} Qe6 {[%emt 0:00:27]} 35. Bc5 {[%emt 0:00:09]} Ng6 {[%emt 0:00:10]} 36. g3 {[%emt 0:00:15]} Qg4 {[%emt 0:00:07]} 37. Qd3 {[%emt 0:00:05]} Nf8 {[%emt 0:00:07]} 38. Bb7 {[%emt 0:00:10]} Ne6 {[%emt 0:00:16]} 39. Bb4 {[%emt 0:00:10]} Rad8 {[%emt 0:00:06]} 40. a5 {[%emt 0:00:01]} Qg6 {[%emt 0:00:19]} 41. b6 {[%emt 0:00:08]} axb6 {[%emt 0:00:01]} 42. axb6 {[%emt 0:00:01]} Rb8 {[%emt 0:00:00]} 43. Qb5 {[%emt 0:00:50]} Nd8 {[%emt 0:00:23]} 44. Qd5 {[%emt 0:01:46]} Nxb7 {[%emt 0:00:14]} 45. c7 {[%emt 0:00:15]} Qxb6 {[%emt 0:00:14]} 46. cxb8=Q {[%emt 0:00:04]} Rxb8 {[%emt 0:00:03]} 47. Qxe5 {[%emt 0:00:10]} Ra8 {[%emt 0:00:08]} 48. Qe7 {[%emt 0:00:09]} d3 {[%emt 0:00:19]} 49. Rf1 {[%emt 0:00:04]} h6 {[%emt 0:00:09]} 50. Rxf7 {[%emt 0:00:19]} Ra1+ {[%emt 0:00:01]} 51. Kg2 {[%emt 0:00:01]} Rg1+ {[%emt 0:00:13]} 52. Kh3 {[%emt 0:00:03]} Qg6 {[%emt 0:00:01]} 53. Rf4 {[%emt 0:00:48]} Qh5+ {[%emt 0:00:17]} 54. Rh4 {[%emt 0:00:04]} Qf3 {[%emt 0:00:08]} 55. Qxb7 {[%emt 0:00:12]} Qg2+ {[%emt 0:00:07]} 56. Kg4 {[%emt 0:00:01]} Qe2+ {[%emt 0:00:00]} 57. Kf5 {[%emt 0:00:16]} Qf3+ {[%emt 0:00:28]} 58. Ke5 {[%emt 0:00:09]} Qf6+ {[%emt 0:00:01]} 59. Kd5 {[%emt 0:00:03]} Qg5+ {[%emt 0:00:02]} 60. Kd4 {[%emt 0:00:21]} d2 {[%emt 0:00:01]} 61. Bxd2 {[%emt 0:00:20]} Qxd2+ {[%emt 0:00:02]} 62. Ke5 {[%emt 0:00:03]} Qg5+ {[%emt 0:00:01]} 63. Kd4 {[%emt 0:00:22]} Rd1+ {[%emt 0:00:01]} 64. Kc4 {[%emt 0:00:01]} Qc1+ {[%emt 0:00:02]} 65. Kb5 {[%emt 0:00:04]} Qb2+ {[%emt 0:00:02]} 66. Kc6 {[%emt 0:00:08]} Rc1+ {[%emt 0:00:01]} 0-1

[Event "11th LCC Rapid 2019"]
[Site "London"]
[Date "2019.12.07"]
[Round "2.24"]
[White "Phillips, David A"]
[Black "Titorenko, Kostyantyn"]
[Result "1-0"]
[WhiteElo "2055"]
[BlackElo "1772"]
[PlyCount "111"]
[EventDate "2019.12.08"]
[EventType "swiss"]
[EventCountry "ENG"]
[TimeControl "15+10"]
[WhiteClock "0:00:34"]
[BlackClock "0:00:57"]

1. d4 {[%emt 0:00:00]} Nf6 {[%emt 0:00:00]} 2. Bf4 {[%emt 0:00:00]} d6 {[%emt 0:00:00]} 3. Nf3 {[%emt 0:00:00]} g6 {[%emt 0:00:00]} 4. e3 {[%emt 0:00:00]} Bg7 {[%emt 0:00:00]} 5. h3 {[%emt 0:00:00]} O-O {[%emt 0:00:00]} 6. Be2 {[%emt 0:00:00]} Nc6 {[%emt 0:00:00]} 7. O-O {[%emt 0:00:00]} e5 {[%emt 0:00:00]} 8. Bh2 {[%emt 0:00:00]} exd4 {[%emt 0:00:00]} 9. exd4 {[%emt 0:00:00]} Re8 {[%emt 0:00:00]} 10. c4 {[%emt 0:00:00]} Bf5 {[%emt 0:00:26]} 11. Nc3 {[%emt 0:00:00]} Ne4 {[%emt 0:00:00]} 12. Nd5 {[%emt 0:00:00]} Ne7 {[%emt 0:00:00]} 13. Ne3 {[%emt 0:00:00]} Bd7 {[%emt 0:00:00]} 14. Bd3 {[%emt 0:00:00]} Nf5 {[%emt 0:00:00]} 15. Qc2 {[%emt 0:00:00]} Nxe3 {[%emt 0:00:00]} 16. fxe3 {[%emt 0:00:00]} Ng5 {[%emt 0:00:00]} 17. Rae1 {[%emt 0:00:00]} Nxf3+ {[%emt 0:00:00]} 18. Rxf3 {[%emt 0:00:00]} Qg5 {[%emt 0:00:00]} 19. Bf4 {[%emt 0:00:00]} Qa5 {[%emt 0:00:00]} 20. Ref1 {[%emt 0:00:00]} Rf8 {[%emt 0:00:00]} 21. a3 {[%emt 0:00:00]} b5 {[%emt 0:00:00]} 22. c5 {[%emt 0:00:00]} d5 {[%emt 0:00:00]} 23. Qc1 {[%emt 0:01:36]} c6 {[%emt 0:00:00]} 24. Bd6 {[%emt 0:00:07]} Be6 {[%emt 0:01:27]} 25. Bxf8 {[%emt 0:00:18]} Rxf8 {[%emt 0:00:01]} 26. b4 {[%emt 0:00:08]} Qc7 {[%emt 0:00:07]} 27. Qe1 {[%emt 0:00:22]} f5 {[%emt 0:00:08]} 28. Qg3 {[%emt 0:00:54]} Qd7 {[%emt 0:00:01]} 29. Ra1 {[%emt 0:00:31]} Re8 {[%emt 0:00:02]} 30. Kh1 {[%emt 0:00:08]} Bf7 {[%emt 0:00:27]} 31. a4 {[%emt 0:00:23]} a6 {[%emt 0:00:02]} 32. axb5 {[%emt 0:00:03]} axb5 {[%emt 0:00:01]} 33. Ra3 {[%emt 0:00:43]} Bh6 {[%emt 0:00:05]} 34. Bc2 {[%emt 0:00:20]} Kg7 {[%emt 0:00:10]} 35. Bxf5 {[%emt 0:00:12]} Qe7 {[%emt 0:00:12]} 36. Bc2 {[%emt 0:00:10]} Be6 {[%emt 0:00:07]} 37. Qe5+ {[%emt 0:00:03]} Kg8 {[%emt 0:00:11]} 38. Qd6 {[%emt 0:00:05]} Qxd6 {[%emt 0:00:10]} 39. cxd6 {[%emt 0:00:02]} Bf8 {[%emt 0:00:09]} 40. Ra6 {[%emt 0:00:30]} Bxd6 {[%emt 0:00:14]} 41. Rxc6 {[%emt 0:00:03]} Bxb4 {[%emt 0:00:02]} 42. Rb6 {[%emt 0:00:11]} Bd7 {[%emt 0:00:30]} 43. Bb3 {[%emt 0:00:02]} Kg7 {[%emt 0:01:55]} 44. Bxd5 {[%emt 0:00:03]} Kh6 {[%emt 0:00:12]} 45. Rf7 {[%emt 0:00:30]} Bf5 {[%emt 0:00:22]} 46. Rxb5 {[%emt 0:00:10]} Bd6 {[%emt 0:00:10]} 47. Rb3 {[%emt 0:00:05]} Rc8 {[%emt 0:00:11]} 48. g4 {[%emt 0:00:12]} Rc1+ {[%emt 0:00:08]} 49. Kg2 {[%emt 0:00:01]} Bc8 {[%emt 0:00:38]} 50. Rf1 {[%emt 0:00:09]} Rc2+ {[%emt 0:00:07]} 51. Rf2 {[%emt 0:00:02]} Rc7 {[%emt 0:00:04]} 52. e4 {[%emt 0:00:12]} Bf8 {[%emt 0:00:17]} 53. Rxf8 {[%emt 0:00:04]} Ba6 {[%emt 0:00:08]} 54. h4 {[%emt 0:00:11]} g5 {[%emt 0:00:06]} 55. Rb6+ {[%emt 0:00:03]} Kg7 {[%emt 0:00:01]} 56. Rg8# {[%emt 0:00:05]} 1-0

[Event "11th LCC Rapid 2019"]
[Site "London"]
[Date "2019.12.07"]
[Round "2.25"]
[White "Conway, Paul Bernard"]
[Black "Nayak, Raghav"]
[Result "1-0"]
[WhiteElo "1837"]
[BlackElo "1914"]
[PlyCount "127"]
[EventDate "2019.12.08"]
[EventType "swiss"]
[EventCountry "ENG"]
[TimeControl "15+10"]
[WhiteClock "0:02:03"]
[BlackClock "0:02:49"]

1. e4 {[%emt 0:00:00]} e5 {[%emt 0:00:00]} 2. Nf3 {[%emt 0:00:00]} Nc6 {[%emt 0:00:00]} 3. Bb5 {[%emt 0:00:00]} a6 {[%emt 0:00:00]} 4. Ba4 {[%emt 0:00:00]} Nf6 {[%emt 0:00:00]} 5. O-O {[%emt 0:00:00]} Be7 {[%emt 0:00:00]} 6. Re1 {[%emt 0:00:00]} b5 {[%emt 0:00:00]} 7. Bb3 {[%emt 0:00:00]} O-O {[%emt 0:00:00]} 8. a4 {[%emt 0:00:00]} Bb7 {[%emt 0:00:00]} 9. d3 {[%emt 0:00:00]} d6 {[%emt 0:00:00]} 10. c3 {[%emt 0:00:00]} Na5 {[%emt 0:00:00]} 11. Bc2 {[%emt 0:00:00]} c5 {[%emt 0:00:00]} 12. Nbd2 {[%emt 0:00:00]} Qc7 {[%emt 0:00:00]} 13. axb5 {[%emt 0:00:00]} axb5 {[%emt 0:00:00]} 14. Nf1 {[%emt 0:00:00]} Rfe8 {[%emt 0:00:00]} 15. Ng3 {[%emt 0:00:00]} Nc6 {[%emt 0:00:00]} 16. Rxa8 {[%emt 0:00:00]} Rxa8 {[%emt 0:00:00]} 17. Nf5 {[%emt 0:00:00]} Bc8 {[%emt 0:00:00]} 18. N3h4 {[%emt 0:00:00]} Ra1 {[%emt 0:00:00]} 19. Qe2 {[%emt 0:00:00]} Bf8 {[%emt 0:00:00]} 20. Bg5 {[%emt 0:00:00]} Rxe1+ {[%emt 0:00:00]} 21. Qxe1 {[%emt 0:00:00]} Qd8 {[%emt 0:00:00]} 22. h3 {[%emt 0:00:00]} h6 {[%emt 0:00:00]} 23. Be3 {[%emt 0:00:00]} Be6 {[%emt 0:00:00]} 24. d4 {[%emt 0:00:00]} cxd4 {[%emt 0:00:17]} 25. cxd4 {[%emt 0:00:00]} exd4 {[%emt 0:00:26]} 26. Nxd4 {[%emt 0:00:00]} Nxd4 {[%emt 0:01:05]} 27. Bxd4 {[%emt 0:00:00]} d5 {[%emt 0:00:53]} 28. e5 {[%emt 0:00:00]} Nd7 {[%emt 0:00:06]} 29. f4 {[%emt 0:00:00]} Qc7 {[%emt 0:01:18]} 30. Qd2 {[%emt 0:00:43]} Bc5 {[%emt 0:00:05]} 31. Bxc5 {[%emt 0:00:24]} Qxc5+ {[%emt 0:00:19]} 32. Kh1 {[%emt 0:00:32]} Nf8 {[%emt 0:00:40]} 33. f5 {[%emt 0:00:51]} Bd7 {[%emt 0:00:02]} 34. Nf3 {[%emt 0:00:16]} Bc6 {[%emt 0:00:14]} 35. Nd4 {[%emt 0:00:30]} Bb7 {[%emt 0:00:13]} 36. Qd3 {[%emt 0:00:41]} Qc4 {[%emt 0:00:12]} 37. Nxb5 {[%emt 0:00:36]} Qxd3 {[%emt 0:00:08]} 38. Bxd3 {[%emt 0:00:03]} Ba6 {[%emt 0:00:07]} 39. Be2 {[%emt 0:00:22]} Nd7 {[%emt 0:00:02]} 40. e6 {[%emt 0:00:17]} fxe6 {[%emt 0:00:03]} 41. fxe6 {[%emt 0:00:02]} Nf6 {[%emt 0:00:24]} 42. Nd4 {[%emt 0:00:18]} Bxe2 {[%emt 0:00:16]} 43. Nxe2 {[%emt 0:00:02]} Kf8 {[%emt 0:00:02]} 44. Nd4 {[%emt 0:00:17]} Ke7 {[%emt 0:00:04]} 45. Kg1 {[%emt 0:00:35]} g6 {[%emt 0:00:05]} 46. Kf1 {[%emt 0:00:09]} Ne4 {[%emt 0:00:03]} 47. b4 {[%emt 0:00:14]} Ng5 {[%emt 0:00:36]} 48. Ke2 {[%emt 0:00:05]} Nxe6 {[%emt 0:00:01]} 49. Nxe6 {[%emt 0:00:03]} Kxe6 {[%emt 0:00:01]} 50. Ke3 {[%emt 0:00:09]} Kd6 {[%emt 0:00:04]} 51. Kd4 {[%emt 0:00:03]} g5 {[%emt 0:00:11]} 52. g4 {[%emt 0:00:13]} Kc6 {[%emt 0:00:18]} 53. b5+ {[%emt 0:00:08]} Kxb5 {[%emt 0:00:01]} 54. Kxd5 {[%emt 0:00:01]} Kb4 {[%emt 0:00:01]} 55. Ke5 {[%emt 0:00:02]} Kc4 {[%emt 0:00:00]} 56. Kf5 {[%emt 0:00:01]} Kd4 {[%emt 0:00:01]} 57. Kg6 {[%emt 0:00:01]} Ke4 {[%emt 0:00:18]} 58. Kxh6 {[%emt 0:00:04]} Kf4 {[%emt 0:00:01]} 59. Kh5 {[%emt 0:00:10]} Kg3 {[%emt 0:00:01]} 60. Kxg5 {[%emt 0:00:03]} Kxh3 {[%emt 0:00:01]} 61. Kh5 {[%emt 0:00:07]} Kg3 {[%emt 0:00:01]} 62. g5 {[%emt 0:00:01]} Kf4 {[%emt 0:00:01]} 63. g6 {[%emt 0:00:02]} Ke5 {[%emt 0:00:01]} 64. g7 {[%emt 0:00:01]} 1-0

[Event "11th LCC Rapid 2019"]
[Site "London"]
[Date "2019.12.07"]
[Round "2.26"]
[White "Trivedi, Aarnavh"]
[Black "Watson, Jacob"]
[Result "0-1"]
[WhiteElo "1761"]
[BlackElo "1922"]
[PlyCount "66"]
[EventDate "2019.12.08"]
[EventType "swiss"]
[EventCountry "ENG"]
[TimeControl "15+10"]
[WhiteClock "0:11:44"]
[BlackClock "0:13:47"]

1. d4 {[%emt 0:00:00]} d5 {[%emt 0:00:00]} 2. Bf4 {[%emt 0:00:00]} Nf6 {[%emt 0:00:00]} 3. e3 {[%emt 0:00:00]} c5 {[%emt 0:00:00]} 4. Nc3 {[%emt 0:00:00]} Nc6 {[%emt 0:00:00]} 5. Nb5 {[%emt 0:00:00]} e5 {[%emt 0:00:00]} 6. dxe5 {[%emt 0:00:00]} Qa5+ {[%emt 0:00:00]} 7. c3 {[%emt 0:00:00]} a6 {[%emt 0:00:00]} 8. exf6 {[%emt 0:00:00]} axb5 {[%emt 0:00:00]} 9. Qxd5 {[%emt 0:00:00]} Be6 {[%emt 0:00:00]} 10. Qe4 {[%emt 0:00:00]} gxf6 {[%emt 0:00:00]} 11. Nf3 {[%emt 0:00:00]} Bg7 {[%emt 0:00:00]} 12. Bd6 {[%emt 0:00:00]} f5 {[%emt 0:00:00]} 13. Qc2 {[%emt 0:00:00]} b4 {[%emt 0:00:00]} 14. a3 {[%emt 0:00:00]} bxc3 {[%emt 0:00:00]} 15. b3 {[%emt 0:00:00]} Bxb3 {[%emt 0:00:00]} 16. Qxb3 {[%emt 0:00:00]} c2+ {[%emt 0:00:00]} 17. Nd2 {[%emt 0:00:00]} Bxa1 {[%emt 0:00:00]} 18. Qxc2 {[%emt 0:00:00]} Bc3 {[%emt 0:00:00]} 19. Bc4 {[%emt 0:00:00]} Bxd2+ {[%emt 0:00:00]} 20. Qxd2 {[%emt 0:00:00]} Qxd2+ {[%emt 0:00:00]} 21. Kxd2 {[%emt 0:00:00]} Rd8 {[%emt 0:00:00]} 22. Rb1 {[%emt 0:00:00]} Rxd6+ {[%emt 0:00:00]} 23. Ke2 {[%emt 0:00:00]} Na5 {[%emt 0:00:00]} 24. Bb5+ {[%emt 0:00:00]} Ke7 {[%emt 0:00:00]} 25. Bd3 {[%emt 0:00:00]} b6 {[%emt 0:00:00]} 26. Bxf5 {[%emt 0:00:00]} h6 {[%emt 0:00:00]} 27. g4 {[%emt 0:00:00]} Rhd8 {[%emt 0:00:00]} 28. Kf3 {[%emt 0:00:00]} Nc4 {[%emt 0:00:00]} 29. Rc1 {[%emt 0:00:00]} Ne5+ {[%emt 0:00:00]} 30. Kg3 {[%emt 0:00:00]} Nd3 {[%emt 0:00:00]} 31. Rb1 {[%emt 0:00:00]} c4 {[%emt 0:00:00]} 32. h4 {[%emt 0:00:00]} c3 {[%emt 0:00:00]} 33. Rb3 {[%emt 0:00:00]} c2 {[%emt 0:00:00]} 0-1

[Event "11th LCC Rapid 2019"]
[Site "London"]
[Date "2019.12.07"]
[Round "2.27"]
[White "Clarke, Connor"]
[Black "Zheng, William"]
[Result "1-0"]
[WhiteElo "1704"]
[BlackElo "1672"]
[PlyCount "97"]
[EventDate "2019.12.08"]
[EventType "swiss"]
[EventCountry "ENG"]
[TimeControl "15+10"]
[WhiteClock "0:01:17"]
[BlackClock "0:00:35"]

1. d4 {[%emt 0:00:00]} e6 {[%emt 0:00:00]} 2. Nc3 {[%emt 0:00:00]} d5 {[%emt 0:00:00]} 3. Bf4 {[%emt 0:00:00]} Bb4 {[%emt 0:00:00]} 4. Qd3 {[%emt 0:00:00]} Nf6 {[%emt 0:00:00]} 5. a3 {[%emt 0:00:00]} Ba5 {[%emt 0:00:00]} 6. e3 {[%emt 0:00:00]} O-O {[%emt 0:00:00]} 7. h3 {[%emt 0:00:00]} a6 {[%emt 0:00:00]} 8. Nf3 {[%emt 0:00:00]} Bd7 {[%emt 0:00:00]} 9. b4 {[%emt 0:00:00]} Bb6 {[%emt 0:00:00]} 10. Be2 {[%emt 0:00:00]} a5 {[%emt 0:00:00]} 11. O-O {[%emt 0:00:00]} axb4 {[%emt 0:00:00]} 12. axb4 {[%emt 0:00:00]} Nc6 {[%emt 0:00:00]} 13. b5 {[%emt 0:00:00]} Nb4 {[%emt 0:00:00]} 14. Qd2 {[%emt 0:00:00]} Ba5 {[%emt 0:00:00]} 15. Rfb1 {[%emt 0:00:00]} Na2 {[%emt 0:00:00]} 16. Rxa2 {[%emt 0:00:00]} Ne4 {[%emt 0:00:00]} 17. Qe1 {[%emt 0:00:00]} Nxc3 {[%emt 0:00:00]} 18. Rxa5 {[%emt 0:00:00]} Nxe2+ {[%emt 0:00:00]} 19. Kh1 {[%emt 0:00:00]} Nxf4 {[%emt 0:00:00]} 20. exf4 {[%emt 0:00:00]} Rxa5 {[%emt 0:00:00]} 21. Qxa5 {[%emt 0:00:00]} c6 {[%emt 0:00:00]} 22. b6 {[%emt 0:00:00]} Qf6 {[%emt 0:00:00]} 23. Ne5 {[%emt 0:00:00]} Bc8 {[%emt 0:00:00]} 24. Qd2 {[%emt 0:00:00]} Qd8 {[%emt 0:00:00]} 25. Qb4 {[%emt 0:00:00]} Qh4 {[%emt 0:00:00]} 26. Qd2 {[%emt 0:01:08]} Qd8 {[%emt 0:00:00]} 27. g3 {[%emt 0:00:06]} f6 {[%emt 0:00:00]} 28. Nd3 {[%emt 0:00:02]} e5 {[%emt 0:00:00]} 29. dxe5 {[%emt 0:00:20]} fxe5 {[%emt 0:00:00]} 30. Nxe5 {[%emt 0:00:06]} Bxh3 {[%emt 0:00:00]} 31. Kh2 {[%emt 0:00:27]} Bf5 {[%emt 0:00:00]} 32. Rb3 {[%emt 0:00:36]} Qe8 {[%emt 0:00:00]} 33. g4 {[%emt 0:00:34]} Bxg4 {[%emt 0:00:00]} 34. Nxg4 {[%emt 0:00:18]} Qh5+ {[%emt 0:00:00]} 35. Kg3 {[%emt 0:00:18]} Qh1 {[%emt 0:00:00]} 36. f3 {[%emt 0:00:36]} h5 {[%emt 0:00:00]} 37. Qh2 {[%emt 0:00:17]} Qe1+ {[%emt 0:00:32]} 38. Nf2 {[%emt 0:00:21]} Re8 {[%emt 0:01:06]} 39. Qh1 {[%emt 0:00:55]} h4+ {[%emt 0:00:34]} 40. Kg2 {[%emt 0:00:10]} Qd2 {[%emt 0:00:30]} 41. Qxh4 {[%emt 0:00:17]} Qxc2 {[%emt 0:00:03]} 42. Ra3 {[%emt 0:00:20]} Re6 {[%emt 0:01:16]} 43. Ra8+ {[%emt 0:00:08]} Kf7 {[%emt 0:00:02]} 44. Kg3 {[%emt 0:00:20]} Rg6+ {[%emt 0:00:17]} 45. Ng4 {[%emt 0:00:01]} Qb1 {[%emt 0:01:43]} 46. Kh2 {[%emt 0:00:20]} Qxb6 {[%emt 0:00:45]} 47. Ne5+ {[%emt 0:00:03]} Ke6 {[%emt 0:00:09]} 48. Re8+ {[%emt 0:00:03]} Kd6 {[%emt 0:00:01]} 49. Qe7# {[%emt 0:00:04]} 1-0

[Event "11th LCC Rapid 2019"]
[Site "London"]
[Date "2019.12.07"]
[Round "2.28"]
[White "Jain, Gautam"]
[Black "Kirupakaran, Vishnu"]
[Result "1-0"]
[WhiteElo "1900"]
[BlackElo "1871"]
[PlyCount "51"]
[EventDate "2019.12.08"]
[EventType "swiss"]
[EventCountry "ENG"]
[TimeControl "15+10"]
[WhiteClock "0:09:17"]
[BlackClock "0:07:42"]

1. e4 {[%emt 0:00:00]} c5 {[%emt 0:00:00]} 2. Nc3 {[%emt 0:00:00]} d6 {[%emt 0:00:00]} 3. f4 {[%emt 0:00:00]} Nc6 {[%emt 0:00:00]} 4. Nf3 {[%emt 0:00:00]} g6 {[%emt 0:00:00]} 5. Bc4 {[%emt 0:00:00]} Bg7 {[%emt 0:00:00]} 6. O-O {[%emt 0:00:00]} e6 {[%emt 0:00:00]} 7. d3 {[%emt 0:00:00]} Nge7 {[%emt 0:00:00]} 8. Qe1 {[%emt 0:00:00]} O-O {[%emt 0:00:00]} 9. a4 {[%emt 0:00:00]} Nd4 {[%emt 0:00:00]} 10. Nxd4 {[%emt 0:00:00]} cxd4 {[%emt 0:00:00]} 11. Nd1 {[%emt 0:00:00]} d5 {[%emt 0:00:00]} 12. Bb3 {[%emt 0:00:00]} dxe4 {[%emt 0:00:00]} 13. dxe4 {[%emt 0:00:00]} d3 {[%emt 0:00:00]} 14. Be3 {[%emt 0:00:00]} dxc2 {[%emt 0:00:00]} 15. Bxc2 {[%emt 0:00:00]} b6 {[%emt 0:00:00]} 16. Nc3 {[%emt 0:00:00]} Bb7 {[%emt 0:00:00]} 17. Rd1 {[%emt 0:00:00]} Qc7 {[%emt 0:00:00]} 18. Bb1 {[%emt 0:00:00]} a6 {[%emt 0:00:00]} 19. Qf2 {[%emt 0:00:00]} Nc8 {[%emt 0:00:00]} 20. f5 {[%emt 0:00:00]} exf5 {[%emt 0:00:00]} 21. exf5 {[%emt 0:00:00]} Re8 {[%emt 0:00:00]} 22. fxg6 {[%emt 0:00:00]} hxg6 {[%emt 0:00:00]} 23. Ba2 {[%emt 0:00:00]} Rf8 {[%emt 0:00:00]} 24. Bd4 {[%emt 0:00:00]} Bxd4 {[%emt 0:00:00]} 25. Rxd4 {[%emt 0:00:00]} Nd6 {[%emt 0:00:00]} 26. Qf6 {[%emt 0:00:00]} 1-0

[Event "11th LCC Rapid 2019"]
[Site "London"]
[Date "2019.12.07"]
[Round "3.1"]
[White "Abrahams, Daniel"]
[Black "Hebden, Mark L"]
[Result "0-1"]
[WhiteElo "2176"]
[BlackElo "2433"]
[PlyCount "62"]
[EventDate "2019.12.08"]
[EventType "swiss"]
[EventCountry "ENG"]
[TimeControl "15+10"]
[WhiteClock "0:05:49"]
[BlackClock "0:04:28"]

1. c4 {[%emt 0:00:00]} g6 {[%emt 0:00:00]} 2. Nc3 {[%emt 0:00:00]} Bg7 {[%emt 0:00:00]} 3. e3 {[%emt 0:00:00]} Nf6 {[%emt 0:00:00]} 4. g3 {[%emt 0:00:00]} O-O {[%emt 0:00:00]} 5. Bg2 {[%emt 0:00:00]} e6 {[%emt 0:00:00]} 6. Nge2 {[%emt 0:00:00]} d5 {[%emt 0:00:00]} 7. b3 {[%emt 0:00:00]} Nc6 {[%emt 0:00:00]} 8. d4 {[%emt 0:00:00]} a5 {[%emt 0:00:00]} 9. cxd5 {[%emt 0:00:00]} exd5 {[%emt 0:00:00]} 10. O-O {[%emt 0:00:00]} Re8 {[%emt 0:00:00]} 11. Ba3 {[%emt 0:00:00]} Nb4 {[%emt 0:00:00]} 12. Qd2 {[%emt 0:00:00]} c6 {[%emt 0:00:00]} 13. Bxb4 {[%emt 0:00:00]} axb4 {[%emt 0:00:00]} 14. Na4 {[%emt 0:00:00]} Bf8 {[%emt 0:00:00]} 15. Rfc1 {[%emt 0:00:00]} Ne4 {[%emt 0:00:00]} 16. Bxe4 {[%emt 0:00:00]} dxe4 {[%emt 0:00:00]} 17. d5 {[%emt 0:00:00]} cxd5 {[%emt 0:00:00]} 18. Nd4 {[%emt 0:00:00]} Bh3 {[%emt 0:00:00]} 19. Rc2 {[%emt 0:00:00]} Qf6 {[%emt 0:00:00]} 20. Rac1 {[%emt 0:00:00]} Bd6 {[%emt 0:01:34]} 21. Nb6 {[%emt 0:00:00]} Ra5 {[%emt 0:00:00]} 22. Na4 {[%emt 0:00:00]} Be5 {[%emt 0:00:00]} 23. Qd1 {[%emt 0:00:00]} h5 {[%emt 0:00:00]} 24. f4 {[%emt 0:00:00]} exf3 {[%emt 0:00:00]} 25. Nxf3 {[%emt 0:00:00]} Bd6 {[%emt 0:00:00]} 26. Rf2 {[%emt 0:00:00]} Rxe3 {[%emt 0:00:00]} 27. Qd4 {[%emt 0:00:00]} Qxd4 {[%emt 0:00:00]} 28. Nxd4 {[%emt 0:00:00]} b5 {[%emt 0:00:00]} 29. Nb6 {[%emt 0:00:00]} Bc5 {[%emt 0:00:00]} 30. Nc6 {[%emt 0:00:18]} Rxa2 {[%emt 0:00:00]} 31. Rxa2 {[%emt 0:00:39]} Re1# {[%emt 0:00:02]} 0-1